fUST/lending_fUST_20240617
["ID","MTS","AMOUNT","RATE_DAILY","PERIOD"]
[329703409,1718587843797,-1830.32,0.00015429,2]
[329703410,1718587843812,-500.0,0.00015429,2]
[329703411,1718587843825,-4703.61,0.00015429,2]
[329703413,1718587843838,-153.0,0.0001554,2]
[329703414,1718587843849,-153.0,0.0001554,2]
[329703415,1718587843869,-205.5018464,0.0001554,2]
[329703416,1718587843884,-153.0,0.0001554,2]
[329703417,1718587843896,-153.0,0.0001554,2]
[329703418,1718587843929,-153.0,0.0001554,2]
[329703419,1718587843945,-153.0,0.0001554,2]
[329703420,1718587843968,-153.0,0.0001554,2]
[329703421,1718587843979,-306.0,0.0001554,2]
[329703422,1718587843995,-153.0,0.0001554,2]
[329703423,1718587844007,-153.0,0.0001554,2]
[329703424,1718587844020,-153.0,0.0001554,2]
[329703425,1718587844031,-153.0,0.0001554,2]
[329703426,1718587844050,-153.0,0.0001554,2]
[329703427,1718587844064,-204.9828285,0.0001554,2]
[329703428,1718587844094,-306.0,0.0001554,2]
[329703429,1718587844106,-306.0,0.0001554,2]
[329703430,1718587844119,-169.504474,0.00015542,2]
[329703431,1718587844130,-174.098785,0.00015573,2]
[329703432,1718587844152,-887.007004,0.00015573,2]
[329703433,1718587844175,-665.491979,0.00015573,2]
[329703435,1718587844192,-500.0,0.00015702,2]
[329703437,1718587844205,-500.0,0.00015702,2]
[329703438,1718587844218,-500.0,0.00015702,2]
[329703439,1718587844236,-6315.58,0.00015702,2]
[329703442,1718587844250,-500.0,0.00015702,2]
[329703445,1718587844321,-500.0,0.00015702,2]
[329703448,1718587844340,-2923.89,0.00015702,2]
[329703450,1718587844366,-500.0,0.00015702,2]
[329703451,1718587844379,-543.13,0.00015702,2]
[329703452,1718587844391,-1158.65,0.00015702,2]
[329703454,1718587844402,-1559.98,0.00015702,2]
[329703456,1718587844413,-500.0,0.00015702,2]
[329703458,1718587844430,-500.0,0.00015702,2]
[329703460,1718587844446,-1207.65,0.00015702,2]
[329703462,1718587844470,-536.62,0.00015702,2]
[329703464,1718587844489,-1051.14,0.00015702,2]
[329703467,1718587844510,-834.77,0.00015702,2]
[329703468,1718587844523,-500.0,0.00015702,2]
[329703469,1718587844545,-1204.54,0.00015702,2]
[329703470,1718587844558,-500.0,0.00015703,2]
[329703471,1718587844569,-500.0,0.00015703,2]
[329703472,1718587844588,-500.0,0.00015703,2]
[329703473,1718587844626,-3761.13,0.00015703,2]
[329703474,1718587844653,-1830.32,0.00015703,2]
[329703475,1718587844666,-500.0,0.00015703,2]
[329703476,1718587844682,-4703.61,0.00015703,2]
[329703478,1718587844700,-887.007004,0.00015768,2]
[329703479,1718587844716,-665.491979,0.00015768,2]
[329703481,1718587844738,-620.06393339,0.00015946,2]
[329703483,1718587844763,-887.007004,0.00015962,2]
[329703484,1718587844775,-665.491979,0.00015962,2]
[329703485,1718587844789,-174.098785,0.00015962,2]
[329703486,1718587844801,-500.0,0.00015976,2]
[329703487,1718587844814,-500.0,0.00015976,2]
[329703488,1718587844827,-500.0,0.00015976,2]
[329703489,1718587844841,-6315.58,0.00015976,2]
[329703490,1718587844854,-500.0,0.00015976,2]
[329703491,1718587844887,-500.0,0.00015976,2]
[329703492,1718587844899,-2923.89,0.00015976,2]
[329703493,1718587844914,-500.0,0.00015976,2]
[329703494,1718587844943,-543.13,0.00015976,2]
[329703495,1718587844969,-1158.65,0.00015976,2]
[329703496,1718587844987,-1559.98,0.00015976,2]
[329703497,1718587845000,-500.0,0.00015976,2]
[329703498,1718587845018,-500.0,0.00015976,2]
[329703499,1718587845053,-1207.65,0.00015976,2]
[329703500,1718587845069,-536.62,0.00015976,2]
[329703501,1718587845084,-1051.14,0.00015976,2]
[329703502,1718587845096,-834.77,0.00015976,2]
[329703503,1718587845107,-500.0,0.00015976,2]
[329703504,1718587845129,-1204.54,0.00015976,2]
[329703505,1718587845148,-500.0,0.00015977,2]
[329703506,1718587845168,-500.0,0.00015977,2]
[329703507,1718587845193,-500.0,0.00015977,2]
[329703508,1718587845210,-3761.13,0.00015977,2]
[329703509,1718587845229,-1830.32,0.00015977,2]
[329703510,1718587845245,-500.0,0.00015977,2]
[329703511,1718587845257,-4703.61,0.00015977,2]
[329703512,1718587845269,-1356.29031401,0.00016,2]
[329703513,1718587845281,-1717.87038899,0.000161,2]
[329703514,1718587845296,-1717.87038893,0.000161,2]
[329703515,1718587845309,-1717.87038893,0.000161,2]
[329703516,1718587845325,-1717.87038893,0.000161,2]
[329703517,1718587845337,-1717.87038893,0.000161,2]
[329703518,1718587845358,-1717.87038893,0.000161,2]
[329703519,1718587845371,-1717.87038893,0.000161,2]
[329703520,1718587845393,-1717.87038893,0.000161,2]
[329703521,1718587845417,-1717.87038893,0.000161,2]
[329703522,1718587845435,-1717.87038893,0.000161,2]
[329703523,1718587845451,-887.007004,0.00016157,2]
[329703524,1718587845465,-665.491979,0.00016157,2]
[329703525,1718587845478,-587.08957392,0.000162,2]
[329703526,1718587845498,-6898.12951303,0.00016238,2]
[329703527,1718587845516,-500.0,0.0001625,2]
[329703528,1718587845531,-500.0,0.0001625,2]
[329703529,1718587845562,-500.0,0.0001625,2]
[329703530,1718587845574,-6315.58,0.0001625,2]
[329703531,1718587845607,-500.0,0.0001625,2]
[329703532,1718587845641,-500.0,0.0001625,2]
[329703533,1718587845666,-2923.89,0.0001625,2]
[329703534,1718587845696,-500.0,0.0001625,2]
[329703535,1718587845719,-543.13,0.0001625,2]
[329703536,1718587845734,-1158.65,0.0001625,2]
[329703537,1718587845750,-1559.98,0.0001625,2]
[329703538,1718587845769,-500.0,0.0001625,2]
[329703539,1718587845793,-500.0,0.0001625,2]
[329703540,1718587845810,-1207.65,0.0001625,2]
[329703541,1718587845843,-536.62,0.0001625,2]
[329703542,1718587845877,-1051.14,0.0001625,2]
[329703543,1718587845899,-834.77,0.0001625,2]
[329703544,1718587845927,-500.0,0.0001625,2]
[329703545,1718587845961,-1204.54,0.0001625,2]
[329703546,1718587845980,-743.947995,0.00016251,2]
[329703547,1718587845995,-500.0,0.00016251,2]
[329703548,1718587846009,-500.0,0.00016251,2]
[329703549,1718587846027,-500.0,0.00016251,2]
[329703550,1718587846047,-3761.13,0.00016251,2]
[329703551,1718587846074,-1830.32,0.00016251,2]
[329703552,1718587846090,-500.0,0.00016251,2]
[329703553,1718587846116,-4703.61,0.00016251,2]
[329703554,1718587846147,-155.00775039,0.00016264,2]
[329703555,1718587846160,-1445.180828,0.00016319,2]
[329703556,1718587846174,-1251.051464,0.00016319,2]
[329703557,1718587846188,-887.007004,0.00016352,2]
[329703558,1718587846200,-665.491979,0.00016352,2]
[329703559,1718587846232,-174.098785,0.00016352,2]
[329703560,1718587846248,-608.70791266,0.00016416,2]
[329703561,1718587846262,-45523.610469,0.00016436,2]
[329703562,1718587846275,-743.947995,0.00016436,2]
[329703563,1718587846293,-394.20283113,0.00016437,2]
[329703564,1718587846315,-743.947995,0.00016438,2]
[329703565,1718587846327,-743.947995,0.00016438,2]
[329703566,1718587846342,-743.947992,0.00016438,2]
[329703568,1718587846355,-370.0,0.00016438,2]
[329703570,1718587846375,-27016.8071229,0.00016438,2]
[329703572,1718587846401,-5918.6663326,0.00016438,2]
[329703577,1718587846461,-2449.04191199,0.00016438,2]
[329703580,1718587846483,-14925.49782352,0.00016438,2]
[329703673,1718587857930,-257.82305983,0.00015428,2]
[329703674,1718587858238,-500.0,0.00014606,2]
[329703676,1718587858257,-300.13793617,0.00015428,2]
[329703678,1718587858285,-557.960996,0.00015428,2]
[329703679,1718587858296,-557.960996,0.00015429,2]
[329703680,1718587858307,-557.960996,0.00015429,2]
[329703681,1718587858330,-557.960996,0.00015702,2]
[329703682,1718587858343,-557.960996,0.00015702,2]
[329703683,1718587858356,-557.960996,0.00015768,2]
[329703684,1718587858367,-557.960996,0.00015768,2]
[329703685,1718587858377,-165.64240381,0.00015876,2]
[329703686,1718587858408,-557.960996,0.00015977,2]
[329703687,1718587858420,-557.960996,0.00015977,2]
[329703688,1718587858431,-165.64240379,0.0001603,2]
[329703689,1718587858442,-557.960996,0.000161,2]
[329703690,1718587858454,-557.960996,0.000161,2]
[329703691,1718587858465,-165.64240379,0.00016184,2]
[329703692,1718587858476,-557.960996,0.0001625,2]
[329703693,1718587858487,-557.960996,0.0001625,2]
[329703694,1718587858498,-557.960996,0.00016319,2]
[329703695,1718587858509,-557.960996,0.00016319,2]
[329703696,1718587858523,-165.64240379,0.00016338,2]
[329703697,1718587858543,-557.960996,0.00016436,2]
[329703698,1718587858563,-557.960996,0.00016436,2]
[329703699,1718587858577,-557.960996,0.00016438,2]
[329703700,1718587858592,-557.961001,0.00016438,2]
[329703701,1718587858610,-30055.87571479,0.00016438,2]
[329703702,1718587858621,-4219.281184,0.00016438,2]
[329703703,1718587858657,-4219.281184,0.00016438,2]
[329703704,1718587858669,-4219.281184,0.00016438,2]
[329703705,1718587858680,-4219.281184,0.00016438,2]
[329703706,1718587858690,-4219.281184,0.00016438,2]
[329703707,1718587858702,-4219.281184,0.00016438,2]
[329703708,1718587858713,-4219.281184,0.00016438,2]
[329703709,1718587858730,-4219.281184,0.00016438,2]
[329703710,1718587858763,-4219.281184,0.00016438,2]
[329703711,1718587858775,-4219.281184,0.00016438,2]
[329703712,1718587858788,-4219.281184,0.00016438,2]
[329703713,1718587858799,-4219.281184,0.00016438,2]
[329703714,1718587858810,-4219.281184,0.00016438,2]
[329703715,1718587858832,-4219.281184,0.00016438,2]
[329703716,1718587858855,-4219.281184,0.00016438,2]
[329703717,1718587858869,-4219.281184,0.00016438,2]
[329703718,1718587858880,-4219.281184,0.00016438,2]
[329703719,1718587858903,-4219.281184,0.00016438,2]
[329703720,1718587858915,-4219.281184,0.00016438,2]
[329703721,1718587858930,-4219.281184,0.00016438,2]
[329703722,1718587858945,-275.82048278,0.000165,2]
[329703723,1718587858963,-500.0,0.000165,2]
[329703724,1718587858974,-155.00310006,0.000165,2]
[329703725,1718587858986,-500.0,0.00016524,2]
[329703726,1718587858997,-500.0,0.00016524,2]
[329703727,1718587859008,-500.0,0.00016524,2]
[329703728,1718587859021,-6315.58,0.00016524,2]
[329703729,1718587859035,-500.0,0.00016524,2]
[329703730,1718587859051,-2923.89,0.00016524,2]
[329703731,1718587859065,-500.0,0.00016524,2]
[329703732,1718587859085,-1158.65,0.00016524,2]
[329703733,1718587859097,-1559.98,0.00016524,2]
[329703734,1718587859111,-500.0,0.00016524,2]
[329703735,1718587859127,-500.0,0.00016524,2]
[329703736,1718587859144,-1207.65,0.00016524,2]
[329703737,1718587859166,-536.62,0.00016524,2]
[329703738,1718587859183,-1051.14,0.00016524,2]
[329703739,1718587859230,-834.77,0.00016524,2]
[329703740,1718587859263,-500.0,0.00016524,2]
[329703741,1718587859279,-1204.54,0.00016524,2]
[329703742,1718587859300,-500.0,0.00016525,2]
[329703743,1718587859315,-500.0,0.00016525,2]
[329703744,1718587859330,-3761.13,0.00016525,2]
[329703745,1718587859344,-1830.32,0.00016525,2]
[329703746,1718587859359,-500.0,0.00016525,2]
[329703747,1718587859369,-4703.61,0.00016525,2]
[329703748,1718587859379,-370.0,0.00016712,2]
[329703749,1718587859390,-620.00319667,0.00016744,2]
[329703750,1718587859405,-500.0,0.00016798,2]
[329703751,1718587859421,-500.0,0.00016798,2]
[329703752,1718587859432,-500.0,0.00016798,2]
[329703753,1718587859442,-6315.58,0.00016798,2]
[329703754,1718587859454,-500.0,0.00016798,2]
[329703755,1718587859466,-2923.89,0.00016798,2]
[329703756,1718587859484,-500.0,0.00016798,2]
[329703757,1718587859495,-1158.65,0.00016798,2]
[329703758,1718587859508,-1559.98,0.00016798,2]
[329703759,1718587859520,-500.0,0.00016798,2]
[329703760,1718587859533,-500.0,0.00016798,2]
[329703761,1718587859546,-1207.65,0.00016798,2]
[329703762,1718587859559,-536.62,0.00016798,2]
[329703763,1718587859573,-1051.14,0.00016798,2]
[329703764,1718587859586,-834.77,0.00016798,2]
[329703765,1718587859601,-500.0,0.00016798,2]
[329703766,1718587859613,-1204.54,0.00016798,2]
[329703767,1718587859625,-500.0,0.00016799,2]
[329703768,1718587859637,-500.0,0.00016799,2]
[329703769,1718587859652,-3761.13,0.00016799,2]
[329703770,1718587859667,-1830.32,0.00016799,2]
[329703771,1718587859684,-500.0,0.00016799,2]
[329703772,1718587859710,-4703.61,0.00016799,2]
[329703773,1718587859744,-370.0,0.00016986,2]
[329703774,1718587859772,-1000.0,0.00017,8]
[329703775,1718587859802,-322.45668911,0.00017,2]
[329703776,1718587859841,-500.0,0.00017,2]
[329703777,1718587859867,-43400.0,0.00017,2]
[329703778,1718587859898,-20000.0,0.00017071,2]
[329703779,1718587859929,-500.0,0.00017072,2]
[329703780,1718587859954,-500.0,0.00017072,2]
[329703781,1718587859982,-500.0,0.00017072,2]
[329703782,1718587860009,-6315.58,0.00017072,2]
[329703783,1718587860049,-500.0,0.00017072,2]
[329703784,1718587860073,-2923.89,0.00017072,2]
[329703785,1718587860107,-500.0,0.00017072,2]
[329703786,1718587860124,-1158.65,0.00017072,2]
[329703787,1718587860137,-1559.98,0.00017072,2]
[329703788,1718587860165,-500.0,0.00017072,2]
[329703789,1718587860177,-500.0,0.00017072,2]
[329703790,1718587860190,-1207.65,0.00017072,2]
[329703791,1718587860203,-536.62,0.00017072,2]
[329703792,1718587860225,-1051.14,0.00017072,2]
[329703793,1718587860238,-834.77,0.00017072,2]
[329703794,1718587860250,-500.0,0.00017072,2]
[329703795,1718587860265,-1204.54,0.00017072,2]
[329703796,1718587860281,-500.0,0.00017073,2]
[329703797,1718587860294,-500.0,0.00017073,2]
[329703798,1718587860306,-3761.13,0.00017073,2]
[329703799,1718587860336,-1830.32,0.00017073,2]
[329703800,1718587860375,-500.0,0.00017073,2]
[329703801,1718587860394,-4703.61,0.00017073,2]
[329703802,1718587860409,-2338.91445704,0.000171,2]
[329703803,1718587860420,-370.0,0.0001726,2]
[329703804,1718587860431,-151.0,0.0001726,2]
[329703805,1718587860465,-500.0,0.00017346,2]
[329703806,1718587860477,-500.0,0.00017346,2]
[329703807,1718587860496,-500.0,0.00017346,2]
[329703808,1718587860510,-6315.58,0.00017346,2]
[329703809,1718587860521,-500.0,0.00017346,2]
[329703810,1718587860537,-2923.89,0.00017346,2]
[329703811,1718587860548,-500.0,0.00017346,2]
[329703812,1718587860577,-1158.65,0.00017346,2]
[329703813,1718587860594,-1559.98,0.00017346,2]
[329703814,1718587860608,-500.0,0.00017346,2]
[329703815,1718587860620,-500.0,0.00017346,2]
[329703816,1718587860638,-1207.65,0.00017346,2]
[329703817,1718587860655,-536.62,0.00017346,2]
[329703818,1718587860666,-1051.14,0.00017346,2]
[329703819,1718587860678,-834.77,0.00017346,2]
[329703820,1718587860691,-500.0,0.00017346,2]
[329703821,1718587860702,-1204.54,0.00017346,2]
[329703822,1718587860714,-500.0,0.00017347,2]
[329703823,1718587860732,-500.0,0.00017347,2]
[329703824,1718587860746,-3761.13,0.00017347,2]
[329703825,1718587860757,-1830.32,0.00017347,2]
[329703826,1718587860769,-500.0,0.00017347,2]
[329703827,1718587860788,-4703.61,0.00017347,2]
[329703828,1718587860803,-5047.3626853,0.00017379,2]
[329703829,1718587860816,-5000.0,0.00017379,2]
[329703830,1718587860861,-5000.0,0.00017379,2]
[329703831,1718587860878,-5000.0,0.00017466,2]
[329703832,1718587860892,-9654.03502038,0.00017466,2]
[329703833,1718587860919,-5000.0,0.00017466,2]
[329703834,1718587860931,-500.0,0.000175,2]
[329703835,1718587860944,-113634.5277892,0.000175,2]
[329703836,1718587860955,-155.0,0.0001753,2]
[329703837,1718587860967,-370.0,0.00017534,2]
[329703838,1718587860981,-151.0,0.00017534,2]
[329703839,1718587861006,-620.00015983,0.00017581,2]
[329703840,1718587861020,-1976.58685941,0.000176,2]
[329703841,1718587861036,-5064.40411785,0.00017618,2]
[329703842,1718587861053,-500.0,0.0001762,2]
[329703843,1718587861078,-498.21463667,0.0001762,2]
[329703844,1718587861128,-500.0,0.0001762,2]
[329703845,1718587861196,-6315.58,0.0001762,2]
[329703846,1718587861207,-500.0,0.0001762,2]
[329703847,1718587861220,-2923.89,0.0001762,2]
[329703848,1718587861234,-500.0,0.0001762,2]
[329703849,1718587861245,-1158.65,0.0001762,2]
[329703850,1718587861258,-1559.98,0.0001762,2]
[329703851,1718587861296,-500.0,0.0001762,2]
[329703852,1718587861310,-500.0,0.0001762,2]
[329703853,1718587861339,-1207.65,0.0001762,2]
[329703854,1718587861365,-536.62,0.0001762,2]
[329703855,1718587861380,-1051.14,0.0001762,2]
[329703856,1718587861391,-834.77,0.0001762,2]
[329703857,1718587861411,-500.0,0.0001762,2]
[329703858,1718587861423,-1204.54,0.0001762,2]
[329703859,1718587861441,-500.0,0.00017621,2]
[329703860,1718587861454,-500.0,0.00017621,2]
[329703861,1718587861475,-3761.13,0.00017621,2]
[329703862,1718587861487,-1830.32,0.00017621,2]
[329703863,1718587861500,-500.0,0.00017621,2]
[329703864,1718587861514,-4703.61,0.00017621,2]
[329703865,1718587861526,-160.0,0.0001778,2]
[329703866,1718587861537,-370.0,0.00017808,2]
[329703867,1718587861549,-151.0,0.00017808,2]
[329703868,1718587861560,-500.0,0.00017894,2]
[329703869,1718587861581,-500.0,0.00017894,2]
[329703870,1718587861593,-6315.58,0.00017894,2]
[329703871,1718587861751,-500.0,0.00017894,2]
[329703872,1718587861765,-2923.89,0.00017894,2]
[329703873,1718587861776,-500.0,0.00017894,2]
[329703874,1718587861789,-1158.65,0.00017894,2]
[329703875,1718587861799,-1559.98,0.00017894,2]
[329703876,1718587861810,-500.0,0.00017894,2]
[329703877,1718587861821,-500.0,0.00017894,2]
[329703878,1718587861869,-1207.65,0.00017894,2]
[329703879,1718587861886,-536.62,0.00017894,2]
[329703880,1718587861910,-1051.14,0.00017894,2]
[329703881,1718587861924,-834.77,0.00017894,2]
[329703882,1718587861948,-500.0,0.00017894,2]
[329703883,1718587861962,-1204.54,0.00017894,2]
[329703884,1718587861973,-500.0,0.00017895,2]
[329703885,1718587861990,-500.0,0.00017895,2]
[329703886,1718587862013,-3761.13,0.00017895,2]
[329703887,1718587862026,-1830.32,0.00017895,2]
[329703888,1718587862037,-500.0,0.00017895,2]
[329703889,1718587862047,-4703.61,0.00017895,2]
[329703890,1718587862058,-50916.33318426,0.00018,2]
[329703891,1718587862076,-31200.0,0.00018,5]
[329703892,1718587862087,-915.4484229,0.00018,2]
[329703893,1718587862099,-877.27675689,0.00018,2]
[329703894,1718587862110,-5310.53541764,0.00018,2]
[329703895,1718587862132,-220.78930234,0.00018,2]
[329703896,1718587862155,-155.02170304,0.00018,2]
[329703897,1718587862167,-1000.0,0.00018,9]
[329703898,1718587862178,-500.0,0.00018,2]
[329703899,1718587862194,-180.5,0.00018,2]
[329703900,1718587862207,-1037.34996729,0.00018,2]
[329703901,1718587862218,-204.30897914,0.00018,2]
[329703902,1718587862235,-1000.0,0.00018,2]
[329703903,1718587862253,-370.0,0.00018082,2]
[329703904,1718587862267,-151.0,0.00018082,2]
[329703905,1718587862288,-160.0,0.0001811,3]
[329703906,1718587862304,-160.0,0.00018166,4]
[329703907,1718587862320,-500.0,0.00018168,2]
[329703908,1718587862331,-500.0,0.00018168,2]
[329703909,1718587862366,-6315.58,0.00018168,2]
[329703910,1718587862392,-500.0,0.00018168,2]
[329703911,1718587862407,-2923.89,0.00018168,2]
[329703912,1718587862417,-500.0,0.00018168,2]
[329703913,1718587862427,-1158.65,0.00018168,2]
[329703914,1718587862438,-1559.98,0.00018168,2]
[329703915,1718587862450,-500.0,0.00018168,2]
[329703916,1718587862460,-500.0,0.00018168,2]
[329703917,1718587862476,-1207.65,0.00018168,2]
[329703918,1718587862503,-536.62,0.00018168,2]
[329703919,1718587862514,-1051.14,0.00018168,2]
[329703920,1718587862525,-834.77,0.00018168,2]
[329703921,1718587862548,-500.0,0.00018168,2]
[329703922,1718587862560,-1204.54,0.00018168,2]
[329703923,1718587862571,-500.0,0.00018169,2]
[329703924,1718587862588,-500.0,0.00018169,2]
[329703925,1718587862601,-3761.13,0.00018169,2]
[329703926,1718587862628,-1830.32,0.00018169,2]
[329703927,1718587862640,-500.0,0.00018169,2]
[329703928,1718587862668,-4703.61,0.00018169,2]
[329703929,1718587862689,-160.0,0.00018221,5]
[329703930,1718587862701,-160.0,0.00018276,6]
[329703931,1718587862716,-608.70791266,0.00018325,2]
[329703932,1718587862740,-160.29459279,0.00018328,2]
[329703933,1718587862762,-160.0,0.00018332,7]
[329703934,1718587862775,-370.0,0.00018356,2]
[329703935,1718587862793,-151.0,0.00018356,2]
[329703936,1718587862806,-160.0,0.00018387,8]
[329703937,1718587862819,-500.0,0.00018442,2]
[329703938,1718587862862,-500.0,0.00018442,2]
[329703939,1718587862903,-6315.58,0.00018442,2]
[329703940,1718587862956,-500.0,0.00018442,2]
[329703941,1718587862971,-2923.89,0.00018442,2]
[329703942,1718587862986,-500.0,0.00018442,2]
[329703943,1718587862999,-1158.65,0.00018442,2]
[329703944,1718587863011,-1559.98,0.00018442,2]
[329703945,1718587863022,-500.0,0.00018442,2]
[329703946,1718587863034,-500.0,0.00018442,2]
[329703947,1718587863048,-1207.65,0.00018442,2]
[329703948,1718587863060,-536.62,0.00018442,2]
[329703949,1718587863073,-1051.14,0.00018442,2]
[329703950,1718587863089,-834.77,0.00018442,2]
[329703951,1718587863100,-500.0,0.00018442,2]
[329703952,1718587863110,-1204.54,0.00018442,2]
[329703953,1718587863132,-160.0,0.00018442,9]
[329703954,1718587863146,-500.0,0.00018443,2]
[329703955,1718587863158,-500.0,0.00018443,2]
[329703956,1718587863172,-3761.13,0.00018443,2]
[329703957,1718587863183,-1830.32,0.00018443,2]
[329703958,1718587863196,-500.0,0.00018443,2]
[329703959,1718587863214,-4703.61,0.00018443,2]
[329703960,1718587863225,-620.00000799,0.0001846,2]
[329703961,1718587863256,-160.0,0.00018497,10]
[329703962,1718587863291,-500.0,0.000185,2]
[329703963,1718587863342,-1000.0,0.000185,2]
[329703964,1718587863357,-160.0,0.00018553,11]
[329703965,1718587863381,-155.0,0.0001856,3]
[329703966,1718587863396,-160.0,0.00018608,12]
[329703967,1718587863440,-2000.0,0.00018621,2]
[329703968,1718587863458,-2000.0,0.0001863,2]
[329703969,1718587863484,-2000.0,0.0001863,2]
[329703970,1718587863497,-211.67589256,0.0001863,2]
[329703971,1718587863510,-2000.0,0.0001863,2]
[329703972,1718587863538,-370.0,0.0001863,2]
[329703973,1718587863550,-151.0,0.0001863,2]
[329703974,1718587863576,-250.0,0.0001863,2]
[329703975,1718587863607,-160.0,0.00018663,13]
[329703976,1718587863622,-500.0,0.00018716,2]
[329703977,1718587863635,-500.0,0.00018716,2]
[329703978,1718587863657,-6315.58,0.00018716,2]
[329703979,1718587863686,-500.0,0.00018716,2]
[329703980,1718587863697,-2923.89,0.00018716,2]
[329703981,1718587863710,-500.0,0.00018716,2]
[329703982,1718587863721,-1158.65,0.00018716,2]
[329703983,1718587863732,-1559.98,0.00018716,2]
[329703984,1718587863743,-500.0,0.00018716,2]
[329703985,1718587863755,-500.0,0.00018716,2]
[329703986,1718587863769,-1207.65,0.00018716,2]
[329703987,1718587863806,-536.62,0.00018716,2]
[329703988,1718587863824,-1051.14,0.00018716,2]
[329703989,1718587863845,-834.77,0.00018716,2]
[329703990,1718587863864,-500.0,0.00018716,2]
[329703991,1718587863891,-1204.54,0.00018716,2]
[329703992,1718587863915,-500.0,0.00018717,2]
[329703993,1718587863927,-500.0,0.00018717,2]
[329703994,1718587863939,-3761.13,0.00018717,2]
[329703995,1718587863952,-1830.32,0.00018717,2]
[329703996,1718587863964,-500.0,0.00018717,2]
[329703997,1718587863975,-4703.61,0.00018717,2]
[329703998,1718587863994,-160.0,0.00018718,14]
[329703999,1718587864014,-160.0,0.00018774,15]
[329704000,1718587864031,-159.0,0.000188,2]
[329704001,1718587864047,-160.0,0.00018829,16]
[329704002,1718587864064,-268.95528857,0.00018829,5]
[329704003,1718587864078,-205.5018464,0.00018844,2]
[329704004,1718587864091,-205.5018464,0.00018844,2]
[329704005,1718587864118,-205.5018464,0.00018844,2]
[329704006,1718587864130,-153.0,0.00018844,2]
[329704007,1718587864153,-205.2466968,0.00018852,2]
[329704008,1718587864168,-205.5018464,0.00018852,2]
[329704009,1718587864192,-410.9399054,0.00018852,2]
[329704010,1718587864221,-205.3104842,0.00018852,2]
[329704011,1718587864235,-3404.00712922,0.000189,5]
[329704012,1718587864248,-370.0,0.00018904,2]
[329704013,1718587864280,-151.0,0.00018904,2]
[329704014,1718587864312,-500.0,0.0001899,2]
[329704015,1718587864329,-500.0,0.0001899,2]
[329704016,1718587864365,-6315.58,0.0001899,2]
[329704017,1718587864384,-500.0,0.0001899,2]
[329704018,1718587864399,-2923.89,0.0001899,2]
[329704019,1718587864415,-500.0,0.0001899,2]
[329704020,1718587864430,-1158.65,0.0001899,2]
[329704021,1718587864443,-1559.98,0.0001899,2]
[329704022,1718587864472,-500.0,0.0001899,2]
[329704023,1718587864500,-500.0,0.0001899,2]
[329704024,1718587864517,-1207.65,0.0001899,2]
[329704025,1718587864540,-536.62,0.0001899,2]
[329704026,1718587864564,-1051.14,0.0001899,2]
[329704027,1718587864575,-834.77,0.0001899,2]
[329704028,1718587864600,-500.0,0.0001899,2]
[329704029,1718587864635,-1204.54,0.0001899,2]
[329704030,1718587864659,-500.0,0.00018991,2]
[329704031,1718587864683,-500.0,0.00018991,2]
[329704032,1718587864694,-3761.13,0.00018991,2]